[Event "Titled Tuesday Blitz March 14 Late 2023"]
[White "Albornoz Cabrera, Carlos Daniel"]
[Black "Ismagilov, Damir"]
[WhiteFideId "3518736"]
[BlackFideId "34199982"]
[WhiteElo "2501"]
[BlackElo "2078"]
[Result "1-0"]
[Round "02"]
[TimeControl "180+1"]
[Date "2023.03.14"]
[WhiteClock "0:00:18"]
[BlackClock "0:00:02"]

1. Nf3 {[%clk 0:03:00]}  d5 {[%clk 0:02:58]} 2. d4 {[%clk 0:03:00]}  Nf6 {[%clk 0:02:57]} 3. c4 {[%clk 0:03:00]}  e6 {[%clk 0:02:57]} 4. Nc3 {[%clk 0:03:00]}  dxc4 {[%clk 0:02:57]} 5. e4 {[%clk 0:03:00]}  b5 {[%clk 0:02:57]} 6. e5 {[%clk 0:02:59]}  Nd5 {[%clk 0:02:58]} 7. Nxb5 {[%clk 0:03:00]}  Bb4+ {[%clk 0:02:58]} 8. Bd2 {[%clk 0:02:55]}  a6 {[%clk 0:02:53]} 9. Nc3 {[%clk 0:02:51]}  Nb6 {[%clk 0:02:52]} 10. a3 {[%clk 0:02:27]}  Bxc3 {[%clk 0:02:50]} 11. bxc3 {[%clk 0:02:25]}  Bb7 {[%clk 0:02:47]} 12. h4 {[%clk 0:02:24]}  Nc6 {[%clk 0:02:34]} 13. h5 {[%clk 0:02:23]}  h6 {[%clk 0:02:33]} 14. a4 {[%clk 0:02:06]}  Na5 {[%clk 0:02:31]} 15. Rh3 {[%clk 0:02:01]}  Nb3 {[%clk 0:02:30]} 16. Ra2 {[%clk 0:02:02]}  Bd5 {[%clk 0:02:17]} 17. a5 {[%clk 0:01:55]}  Nd7 {[%clk 0:02:13]} 18. Rg3 {[%clk 0:01:56]}  Qe7 {[%clk 0:02:03]} 19. Rxg7 {[%clk 0:01:44]}  O-O-O {[%clk 0:02:03]} 20. Ra4 {[%clk 0:01:33]}  Nxd2 {[%clk 0:01:36]} 21. Qxd2 {[%clk 0:01:22]}  Bxf3 {[%clk 0:01:34]} 22. gxf3 {[%clk 0:01:21]}  Nxe5 {[%clk 0:01:33]} 23. Qf4 {[%clk 0:01:18]}  Nd3+ {[%clk 0:01:18]} 24. Bxd3 {[%clk 0:01:17]}  cxd3 {[%clk 0:01:19]} 25. Rxf7 {[%clk 0:01:13]}  Rhf8 {[%clk 0:01:16]} 26. Rxe7 {[%clk 0:01:07]}  Rxf4 {[%clk 0:01:15]} 27. Rc4 {[%clk 0:01:07]}  Rd7 {[%clk 0:01:10]} 28. Re8+ {[%clk 0:01:07]}  Kb7 {[%clk 0:01:09]} 29. Rb4+ {[%clk 0:01:05]}  Kc6 {[%clk 0:01:07]} 30. Rxe6+ {[%clk 0:01:04]}  Kd5 {[%clk 0:00:52]} 31. Re5+ {[%clk 0:00:56]}  Kd6 {[%clk 0:00:52]} 32. Re3 {[%clk 0:00:35]}  Rf5 {[%clk 0:00:48]} 33. Kd2 {[%clk 0:00:25]}  Rxa5 {[%clk 0:00:47]} 34. Kxd3 {[%clk 0:00:26]}  Rxh5 {[%clk 0:00:47]} 35. Rb8 {[%clk 0:00:24]}  Rf5 {[%clk 0:00:43]} 36. Rbe8 {[%clk 0:00:23]}  Rdf7 {[%clk 0:00:41]} 37. R8e6+ {[%clk 0:00:23]}  Kd7 {[%clk 0:00:42]} 38. Rxh6 {[%clk 0:00:19]}  Rxf3 {[%clk 0:00:41]} 39. Rxa6 {[%clk 0:00:19]}  Rxf2 {[%clk 0:00:41]} 40. Rae6 {[%clk 0:00:17]}  Rf1 {[%clk 0:00:39]} 41. R6e5 {[%clk 0:00:16]}  Ra1 {[%clk 0:00:36]} 42. Rd5+ {[%clk 0:00:16]}  Kc6 {[%clk 0:00:34]} 43. Rc5+ {[%clk 0:00:16]}  Kb7 {[%clk 0:00:32]} 44. Kc4 {[%clk 0:00:16]}  Rb1 {[%clk 0:00:27]} 45. Ree5 {[%clk 0:00:15]}  Rh7 {[%clk 0:00:25]} 46. Rb5+ {[%clk 0:00:15]}  Rxb5 {[%clk 0:00:25]} 47. Rxb5+ {[%clk 0:00:16]}  Kc6 {[%clk 0:00:25]} 48. Rf5 {[%clk 0:00:16]}  Rh6 {[%clk 0:00:23]} 49. Kb4 {[%clk 0:00:16]}  Kb6 {[%clk 0:00:22]} 50. c4 {[%clk 0:00:16]}  Rh1 {[%clk 0:00:21]} 51. Rf6+ {[%clk 0:00:16]}  Kb7 {[%clk 0:00:21]} 52. Kb5 {[%clk 0:00:16]}  Rb1+ {[%clk 0:00:20]} 53. Kc5 {[%clk 0:00:16]}  Rh1 {[%clk 0:00:19]} 54. Rf7 {[%clk 0:00:16]}  Rh6 {[%clk 0:00:19]} 55. d5 {[%clk 0:00:15]}  Kc8 {[%clk 0:00:19]} 56. Kb5 {[%clk 0:00:15]}  Rb6+ {[%clk 0:00:19]} 57. Kc5 {[%clk 0:00:15]}  Rh6 {[%clk 0:00:19]} 58. Re7 {[%clk 0:00:15]}  Kb7 {[%clk 0:00:17]} 59. Kb5 {[%clk 0:00:15]}  Rb6+ {[%clk 0:00:16]} 60. Kc5 {[%clk 0:00:16]}  Rh6 {[%clk 0:00:16]} 61. Re6 {[%clk 0:00:17]}  Rh4 {[%clk 0:00:15]} 62. Kb5 {[%clk 0:00:17]}  Rh1 {[%clk 0:00:15]} 63. Rg6 {[%clk 0:00:15]}  Rh2 {[%clk 0:00:13]} 64. c5 {[%clk 0:00:15]}  Rb2+ {[%clk 0:00:13]} 65. Kc4 {[%clk 0:00:16]}  Rc2+ {[%clk 0:00:14]} 66. Kb4 {[%clk 0:00:16]}  Rb2+ {[%clk 0:00:14]} 67. Kc3 {[%clk 0:00:16]}  Rb1 {[%clk 0:00:14]} 68. Rg7 {[%clk 0:00:16]}  Rc1+ {[%clk 0:00:13]} 69. Kb4 {[%clk 0:00:17]}  Rb1+ {[%clk 0:00:13]} 70. Ka3 {[%clk 0:00:17]}  Rc1 {[%clk 0:00:12]} 71. Kb4 {[%clk 0:00:18]}  Rb1+ {[%clk 0:00:12]} 72. Kc4 {[%clk 0:00:18]}  Rc1+ {[%clk 0:00:13]} 73. Kd4 {[%clk 0:00:19]}  Rd1+ {[%clk 0:00:13]} 74. Ke4 {[%clk 0:00:20]}  Rc1 {[%clk 0:00:12]} 75. d6 {[%clk 0:00:18]}  Rxc5 {[%clk 0:00:03]} 76. d7 {[%clk 0:00:18]}  Rc4+ {[%clk 0:00:03]} 77. Kd3 {[%clk 0:00:18]}  Rc1 {[%clk 0:00:02]} 78. Kd2 {[%clk 0:00:18]} 1-0


[Site "https://www.chess.com"]

[Event "Titled Tuesday Blitz March 14 Late 2023"]
[White "Avila Pavas, Santiago"]
[Black "Davidson, Kevin"]
[WhiteFideId "4437128"]
[BlackFideId "2056810"]
[WhiteElo "2365"]
[BlackElo "2151"]
[Result "1-0"]
[Round "02"]
[TimeControl "180+1"]
[Date "2023.03.14"]
[WhiteClock "0:00:18"]
[BlackClock "0:00:02"]

1. d4 {[%clk 0:03:00]}  Nf6 {[%clk 0:02:59]} 2. Nf3 {[%clk 0:03:01]}  g6 {[%clk 0:02:59]} 3. Bg5 {[%clk 0:03:01]}  Bg7 {[%clk 0:03:00]} 4. Nbd2 {[%clk 0:03:02]}  d6 {[%clk 0:03:00]} 5. e4 {[%clk 0:03:02]}  h6 {[%clk 0:03:00]} 6. Bh4 {[%clk 0:03:02]}  O-O {[%clk 0:03:00]} 7. c3 {[%clk 0:03:02]}  Nc6 {[%clk 0:03:00]} 8. Bc4 {[%clk 0:03:02]}  e5 {[%clk 0:03:00]} 9. dxe5 {[%clk 0:03:03]}  dxe5 {[%clk 0:03:00]} 10. Qe2 {[%clk 0:03:01]}  Qe8 {[%clk 0:02:58]} 11. O-O {[%clk 0:02:45]}  Nh5 {[%clk 0:02:57]} 12. Bg3 {[%clk 0:02:43]}  Bg4 {[%clk 0:02:38]} 13. Qe3 {[%clk 0:02:43]}  Rd8 {[%clk 0:02:26]} 14. Bb5 {[%clk 0:02:25]}  a6 {[%clk 0:02:26]} 15. Bxc6 {[%clk 0:02:25]}  Qxc6 {[%clk 0:02:16]} 16. Bxe5 {[%clk 0:02:17]}  Bxf3 {[%clk 0:02:08]} 17. Nxf3 {[%clk 0:02:16]}  Bxe5 {[%clk 0:02:00]} 18. Nxe5 {[%clk 0:02:17]}  Qb5 {[%clk 0:02:00]} 19. Nf3 {[%clk 0:02:12]}  Kh7 {[%clk 0:01:53]} 20. Rab1 {[%clk 0:02:02]}  Rd3 {[%clk 0:01:49]} 21. Qe2 {[%clk 0:01:49]}  Nf4 {[%clk 0:01:44]} 22. Qc2 {[%clk 0:01:48]}  Rfd8 {[%clk 0:01:29]} 23. Nd4 {[%clk 0:01:24]}  Qg5 {[%clk 0:01:23]} 24. g3 {[%clk 0:01:25]}  Rd2 {[%clk 0:00:57]} 25. Qb3 {[%clk 0:00:32]}  Ne6 {[%clk 0:00:08]} 26. Nxe6 {[%clk 0:00:30]}  fxe6 {[%clk 0:00:08]} 27. Qxe6 {[%clk 0:00:30]}  R8d7 {[%clk 0:00:05]} 28. Qb3 {[%clk 0:00:27]}  b5 {[%clk 0:00:04]} 29. Rbd1 {[%clk 0:00:27]}  h5 {[%clk 0:00:04]} 30. Rxd2 {[%clk 0:00:27]}  Qxd2 {[%clk 0:00:04]} 31. Qe6 {[%clk 0:00:25]}  c5 {[%clk 0:00:02]} 32. b3 {[%clk 0:00:20]}  c4 {[%clk 0:00:02]} 33. bxc4 {[%clk 0:00:19]}  bxc4 {[%clk 0:00:02]} 34. Qxc4 {[%clk 0:00:19]}  Rb7 {[%clk 0:00:03]} 35. Qxa6 {[%clk 0:00:19]}  Rb2 {[%clk 0:00:03]} 36. Qa7+ {[%clk 0:00:19]}  Kh6 {[%clk 0:00:03]} 37. Qd4 {[%clk 0:00:20]}  Rxa2 {[%clk 0:00:01]} 38. h4 {[%clk 0:00:16]}  Qxd4 {[%clk 0:00:01]} 39. cxd4 {[%clk 0:00:17]}  Rd2 {[%clk 0:00:02]} 40. d5 {[%clk 0:00:17]}  Kg7 {[%clk 0:00:02]} 41. Kg2 {[%clk 0:00:16]}  Kf6 {[%clk 0:00:03]} 42. Kf3 {[%clk 0:00:17]}  Ke5 {[%clk 0:00:03]} 43. Ke3 {[%clk 0:00:17]}  Ra2 {[%clk 0:00:03]} 44. f4+ {[%clk 0:00:18]}  Kd6 {[%clk 0:00:03]} 45. Rd1 {[%clk 0:00:18]}  Ra3+ {[%clk 0:00:04]} 46. Rd3 {[%clk 0:00:19]}  Ra1 {[%clk 0:00:04]} 47. e5+ {[%clk 0:00:19]}  Kd7 {[%clk 0:00:04]} 48. d6 {[%clk 0:00:20]}  Re1+ {[%clk 0:00:03]} 49. Kd4 {[%clk 0:00:20]}  Ra1 {[%clk 0:00:04]} 50. Rc3 {[%clk 0:00:16]}  Ra4+ {[%clk 0:00:04]} 51. Rc4 {[%clk 0:00:16]}  Ra5 {[%clk 0:00:03]} 52. Rc7+ {[%clk 0:00:16]}  Kd8 {[%clk 0:00:03]} 53. Rg7 {[%clk 0:00:16]}  Ra4+ {[%clk 0:00:03]} 54. Kd5 {[%clk 0:00:16]}  Ra5+ {[%clk 0:00:01]} 55. Ke6 {[%clk 0:00:16]}  Kc8 {[%clk 0:00:02]} 56. Rg8+ {[%clk 0:00:17]}  Kb7 {[%clk 0:00:02]} 57. d7 {[%clk 0:00:18]}  Ra6+ {[%clk 0:00:02]} 58. Ke7 {[%clk 0:00:18]}  g5 {[%clk 0:00:02]} 59. d8=Q {[%clk 0:00:18]} 1-0


[Site "https://www.chess.com"]

[Event "Titled Tuesday Blitz March 14 Late 2023"]
[White "Bilan, Danila"]
[Black "Preotu, Razvan"]
[WhiteFideId "24161918"]
[BlackFideId "2613280"]
[WhiteElo "2182"]
[BlackElo "2407"]
[Result "0-1"]
[Round "02"]
[TimeControl "180+1"]
[Date "2023.03.14"]
[WhiteClock "0:00:01"]
[BlackClock "0:01:35"]

1. d4 {[%clk 0:03:00]}  Nf6 {[%clk 0:02:59]} 2. Nf3 {[%clk 0:03:00]}  g6 {[%clk 0:02:59]} 3. Bg5 {[%clk 0:02:59]}  Bg7 {[%clk 0:02:59]} 4. c3 {[%clk 0:02:59]}  O-O {[%clk 0:03:00]} 5. Nbd2 {[%clk 0:02:59]}  d6 {[%clk 0:03:00]} 6. e4 {[%clk 0:02:56]}  c5 {[%clk 0:03:00]} 7. dxc5 {[%clk 0:02:52]}  dxc5 {[%clk 0:03:01]} 8. Qc2 {[%clk 0:02:51]}  Nc6 {[%clk 0:03:00]} 9. Be2 {[%clk 0:02:47]}  Qc7 {[%clk 0:02:59]} 10. O-O {[%clk 0:02:47]}  h6 {[%clk 0:02:59]} 11. Bh4 {[%clk 0:02:44]}  Nh5 {[%clk 0:02:59]} 12. Rfe1 {[%clk 0:02:40]}  Rb8 {[%clk 0:02:53]} 13. a4 {[%clk 0:02:38]}  a6 {[%clk 0:02:53]} 14. Nc4 {[%clk 0:02:25]}  b5 {[%clk 0:02:53]} 15. axb5 {[%clk 0:02:26]}  axb5 {[%clk 0:02:53]} 16. Ne3 {[%clk 0:02:27]}  e6 {[%clk 0:02:53]} 17. Bg3 {[%clk 0:01:49]}  Nxg3 {[%clk 0:02:52]} 18. hxg3 {[%clk 0:01:50]}  c4 {[%clk 0:02:51]} 19. Ng4 {[%clk 0:01:30]}  h5 {[%clk 0:02:30]} 20. Ne3 {[%clk 0:01:26]}  Bb7 {[%clk 0:02:28]} 21. g4 {[%clk 0:00:44]}  hxg4 {[%clk 0:02:21]} 22. Nxg4 {[%clk 0:00:45]}  Qf4 {[%clk 0:02:14]} 23. Nfh2 {[%clk 0:00:32]}  Rfd8 {[%clk 0:01:56]} 24. g3 {[%clk 0:00:31]}  Qd2 {[%clk 0:01:55]} 25. Rac1 {[%clk 0:00:24]}  Na5 {[%clk 0:01:35]} 26. Bf3 {[%clk 0:00:17]}  Nb3 {[%clk 0:01:34]} 27. Qxd2 {[%clk 0:00:01]}  Rxd2 {[%clk 0:01:35]} 0-1


[Site "https://www.chess.com"]

[Event "Titled Tuesday Blitz March 14 Late 2023"]
[White "Biriukov, Ilja"]
[Black "Korchmar, Vasiliy"]
[WhiteFideId "4113373"]
[BlackFideId "24131750"]
[WhiteElo "2426"]
[BlackElo "2370"]
[Result "0-1"]
[Round "02"]
[TimeControl "180+1"]
[Date "2023.03.14"]
[WhiteClock "0:00:26"]
[BlackClock "0:00:03"]

1. c4 {[%clk 0:03:00]}  c6 {[%clk 0:02:59]} 2. Nc3 {[%clk 0:03:00]}  d5 {[%clk 0:03:00]} 3. cxd5 {[%clk 0:03:00]}  cxd5 {[%clk 0:03:00]} 4. d4 {[%clk 0:03:00]}  Nf6 {[%clk 0:03:00]} 5. Bf4 {[%clk 0:02:59]}  Nc6 {[%clk 0:03:00]} 6. Nf3 {[%clk 0:02:59]}  Nh5 {[%clk 0:02:54]} 7. Bg3 {[%clk 0:02:57]}  g6 {[%clk 0:02:48]} 8. e3 {[%clk 0:02:56]}  Bg7 {[%clk 0:02:48]} 9. Bd3 {[%clk 0:02:54]}  O-O {[%clk 0:02:46]} 10. Bh4 {[%clk 0:02:47]}  h6 {[%clk 0:02:35]} 11. O-O {[%clk 0:02:45]}  f5 {[%clk 0:02:15]} 12. Rc1 {[%clk 0:02:32]}  g5 {[%clk 0:02:08]} 13. Bg3 {[%clk 0:02:31]}  Nxg3 {[%clk 0:01:55]} 14. hxg3 {[%clk 0:02:30]}  g4 {[%clk 0:01:37]} 15. Nh4 {[%clk 0:02:26]}  e6 {[%clk 0:01:20]} 16. Ng6 {[%clk 0:02:24]}  Rf7 {[%clk 0:01:15]} 17. Nf4 {[%clk 0:02:24]}  Qg5 {[%clk 0:01:05]} 18. a3 {[%clk 0:02:19]}  h5 {[%clk 0:01:04]} 19. Qe2 {[%clk 0:02:14]}  Bd7 {[%clk 0:01:03]} 20. Rc2 {[%clk 0:02:10]}  Bf6 {[%clk 0:00:59]} 21. Rfc1 {[%clk 0:02:02]}  Rh7 {[%clk 0:00:57]} 22. Kf1 {[%clk 0:01:57]}  h4 {[%clk 0:00:54]} 23. gxh4 {[%clk 0:01:56]}  Rxh4 {[%clk 0:00:51]} 24. g3 {[%clk 0:01:48]}  Rh2 {[%clk 0:00:50]} 25. Ke1 {[%clk 0:01:34]}  Na5 {[%clk 0:00:49]} 26. b4 {[%clk 0:01:31]}  Rh1+ {[%clk 0:00:47]} 27. Qf1 {[%clk 0:01:21]}  Rxf1+ {[%clk 0:00:46]} 28. Bxf1 {[%clk 0:01:21]}  Nc4 {[%clk 0:00:44]} 29. a4 {[%clk 0:01:16]}  Kf7 {[%clk 0:00:41]} 30. b5 {[%clk 0:01:14]}  Rh8 {[%clk 0:00:41]} 31. Ncxd5 {[%clk 0:01:08]}  exd5 {[%clk 0:00:39]} 32. Nxd5 {[%clk 0:01:09]}  Nb6 {[%clk 0:00:24]} 33. Nxb6 {[%clk 0:01:03]}  axb6 {[%clk 0:00:24]} 34. Rc7 {[%clk 0:01:03]}  Ke7 {[%clk 0:00:21]} 35. Rxb7 {[%clk 0:01:00]}  Rd8 {[%clk 0:00:11]} 36. Rxb6 {[%clk 0:00:54]}  Bxd4 {[%clk 0:00:10]} 37. Rb7 {[%clk 0:00:43]}  Bxe3 {[%clk 0:00:10]} 38. Rd1 {[%clk 0:00:39]}  Bc5 {[%clk 0:00:06]} 39. b6 {[%clk 0:00:36]}  Bb4+ {[%clk 0:00:06]} 40. Ke2 {[%clk 0:00:35]}  Qf6 {[%clk 0:00:07]} 41. Bg2 {[%clk 0:00:33]}  Qb2+ {[%clk 0:00:03]} 42. Kf1 {[%clk 0:00:32]}  Bc5 {[%clk 0:00:04]} 43. Re1+ {[%clk 0:00:30]}  Kf6 {[%clk 0:00:03]} 44. Re2 {[%clk 0:00:28]}  Bb5 {[%clk 0:00:03]} 45. axb5 {[%clk 0:00:26]}  Rd1+ {[%clk 0:00:03]} 0-1


[Site "https://www.chess.com"]

[Event "Titled Tuesday Blitz March 14 Late 2023"]
[White "Bluebaum, Matthias"]
[Black "Popov, Mikhail"]
[WhiteFideId "24651516"]
[BlackFideId "4146182"]
[WhiteElo "2638"]
[BlackElo "2270"]
[Result "1-0"]
[Round "02"]
[TimeControl "180+1"]
[Date "2023.03.14"]
[WhiteClock "0:01:21"]
[BlackClock "0:00:06"]

1. d4 {[%clk 0:03:00]}  Nf6 {[%clk 0:02:55]} 2. c4 {[%clk 0:03:00]}  g6 {[%clk 0:02:55]} 3. Nc3 {[%clk 0:03:00]}  Bg7 {[%clk 0:02:55]} 4. e4 {[%clk 0:03:00]}  d6 {[%clk 0:02:56]} 5. Nf3 {[%clk 0:03:01]}  O-O {[%clk 0:02:56]} 6. Be2 {[%clk 0:03:02]}  Na6 {[%clk 0:02:56]} 7. O-O {[%clk 0:03:02]}  e5 {[%clk 0:02:56]} 8. Be3 {[%clk 0:03:02]}  c6 {[%clk 0:02:55]} 9. d5 {[%clk 0:03:01]}  Ng4 {[%clk 0:02:54]} 10. Bg5 {[%clk 0:03:01]}  f6 {[%clk 0:02:54]} 11. Bh4 {[%clk 0:03:01]}  c5 {[%clk 0:02:54]} 12. Ne1 {[%clk 0:03:02]}  h5 {[%clk 0:02:53]} 13. h3 {[%clk 0:03:02]}  Nh6 {[%clk 0:02:53]} 14. a3 {[%clk 0:03:03]}  Nf7 {[%clk 0:02:19]} 15. Nd3 {[%clk 0:03:03]}  Nc7 {[%clk 0:02:10]} 16. b4 {[%clk 0:02:58]}  b6 {[%clk 0:02:11]} 17. Rb1 {[%clk 0:02:59]}  Bh6 {[%clk 0:01:54]} 18. f4 {[%clk 0:02:58]}  exf4 {[%clk 0:01:51]} 19. Bxh5 {[%clk 0:02:59]}  g5 {[%clk 0:01:36]} 20. Bf2 {[%clk 0:02:59]}  Ne5 {[%clk 0:01:35]} 21. Nxe5 {[%clk 0:02:59]}  fxe5 {[%clk 0:01:34]} 22. Bg4 {[%clk 0:03:00]}  Ne8 {[%clk 0:01:27]} 23. bxc5 {[%clk 0:02:59]}  bxc5 {[%clk 0:01:24]} 24. Bxc8 {[%clk 0:02:53]}  Qxc8 {[%clk 0:01:24]} 25. Qa4 {[%clk 0:02:46]}  Nf6 {[%clk 0:01:18]} 26. Qc6 {[%clk 0:02:46]}  Qd8 {[%clk 0:01:15]} 27. Rb7 {[%clk 0:02:44]}  Rf7 {[%clk 0:00:56]} 28. Rxf7 {[%clk 0:02:40]}  Kxf7 {[%clk 0:00:57]} 29. Rb1 {[%clk 0:02:41]}  Rb8 {[%clk 0:00:53]} 30. Rb7+ {[%clk 0:02:17]}  Kg6 {[%clk 0:00:36]} 31. Be1 {[%clk 0:01:53]}  g4 {[%clk 0:00:25]} 32. Bh4 {[%clk 0:01:52]}  Rxb7 {[%clk 0:00:17]} 33. Qxb7 {[%clk 0:01:52]}  Qa5 {[%clk 0:00:14]} 34. Qe7 {[%clk 0:01:41]}  Qxc3 {[%clk 0:00:06]} 35. Qxf6+ {[%clk 0:01:41]}  Kh7 {[%clk 0:00:06]} 36. Qf5+ {[%clk 0:01:33]}  Kh8 {[%clk 0:00:07]} 37. Qxg4 {[%clk 0:01:23]}  f3 {[%clk 0:00:05]} 38. Bf6+ {[%clk 0:01:20]}  Kh7 {[%clk 0:00:06]} 39. Qf5+ {[%clk 0:01:20]}  Kg8 {[%clk 0:00:06]} 40. Qg6+ {[%clk 0:01:21]} 1-0


[Site "https://www.chess.com"]

[Event "Titled Tuesday Blitz March 14 Late 2023"]
[White "Campelo, Leandro Fabricio"]
[Black "Peatman, Carter"]
[WhiteFideId "2103346"]
[BlackFideId "2096480"]
[WhiteElo "2070"]
[BlackElo "2003"]
[Result "1-0"]
[Round "02"]
[TimeControl "180+1"]
[Date "2023.03.14"]
[WhiteClock "0:00:02"]
[BlackClock "0:00:03"]

1. e4 {[%clk 0:02:18]}  e5 {[%clk 0:02:58]} 2. Nf3 {[%clk 0:02:17]}  Nf6 {[%clk 0:02:58]} 3. d4 {[%clk 0:02:16]}  Nxe4 {[%clk 0:02:55]} 4. Bd3 {[%clk 0:02:16]}  Nc6 {[%clk 0:02:54]} 5. Bxe4 {[%clk 0:01:57]}  d5 {[%clk 0:02:54]} 6. Bd3 {[%clk 0:01:56]}  e4 {[%clk 0:02:52]} 7. Bb5 {[%clk 0:01:55]}  exf3 {[%clk 0:02:41]} 8. Qxf3 {[%clk 0:01:54]}  Bd6 {[%clk 0:02:34]} 9. c3 {[%clk 0:01:52]}  O-O {[%clk 0:02:30]} 10. O-O {[%clk 0:01:50]}  Ne7 {[%clk 0:02:28]} 11. Bf4 {[%clk 0:01:42]}  Bf5 {[%clk 0:02:18]} 12. Nd2 {[%clk 0:01:33]}  c6 {[%clk 0:02:11]} 13. Bxd6 {[%clk 0:01:29]}  Qxd6 {[%clk 0:02:07]} 14. Bd3 {[%clk 0:01:28]}  Qd7 {[%clk 0:02:06]} 15. Rfe1 {[%clk 0:01:26]}  Bg6 {[%clk 0:01:41]} 16. Re2 {[%clk 0:01:17]}  Rfe8 {[%clk 0:01:38]} 17. Rae1 {[%clk 0:01:16]}  Rad8 {[%clk 0:01:38]} 18. h3 {[%clk 0:01:09]}  Nc8 {[%clk 0:01:38]} 19. Bxg6 {[%clk 0:00:58]}  hxg6 {[%clk 0:01:35]} 20. Qf4 {[%clk 0:00:50]}  Nd6 {[%clk 0:01:33]} 21. Rxe8+ {[%clk 0:00:49]}  Rxe8 {[%clk 0:01:27]} 22. Rxe8+ {[%clk 0:00:47]}  Nxe8 {[%clk 0:01:28]} 23. Qb8 {[%clk 0:00:46]}  b6 {[%clk 0:01:09]} 24. Nf3 {[%clk 0:00:45]}  f6 {[%clk 0:01:09]} 25. g3 {[%clk 0:00:34]}  Kf7 {[%clk 0:01:08]} 26. Kg2 {[%clk 0:00:34]}  Nd6 {[%clk 0:01:09]} 27. h4 {[%clk 0:00:32]}  Ne4 {[%clk 0:01:07]} 28. Qf4 {[%clk 0:00:28]}  Kg8 {[%clk 0:00:58]} 29. Qb8+ {[%clk 0:00:27]}  Kh7 {[%clk 0:00:58]} 30. Qf4 {[%clk 0:00:27]}  a5 {[%clk 0:00:57]} 31. g4 {[%clk 0:00:19]}  a4 {[%clk 0:00:53]} 32. h5 {[%clk 0:00:20]}  gxh5 {[%clk 0:00:52]} 33. gxh5 {[%clk 0:00:20]}  b5 {[%clk 0:00:51]} 34. a3 {[%clk 0:00:20]}  Qe6 {[%clk 0:00:48]} 35. Nh4 {[%clk 0:00:19]}  Ng5 {[%clk 0:00:38]} 36. Nf5 {[%clk 0:00:17]}  Qe2 {[%clk 0:00:30]} 37. Ng3 {[%clk 0:00:12]}  Qc2 {[%clk 0:00:27]} 38. h6 {[%clk 0:00:10]}  Qxb2 {[%clk 0:00:18]} 39. hxg7 {[%clk 0:00:08]}  Kxg7 {[%clk 0:00:18]} 40. Nf5+ {[%clk 0:00:07]}  Kg6 {[%clk 0:00:12]} 41. Nh4+ {[%clk 0:00:06]}  Kf7 {[%clk 0:00:12]} 42. Qc7+ {[%clk 0:00:06]}  Ke8 {[%clk 0:00:10]} 43. Qxc6+ {[%clk 0:00:06]}  Ke7 {[%clk 0:00:07]} 44. Qxd5 {[%clk 0:00:05]}  Qxc3 {[%clk 0:00:06]} 45. Nf5+ {[%clk 0:00:05]}  Kf8 {[%clk 0:00:03]} 46. Qd7 {[%clk 0:00:03]}  Kg8 {[%clk 0:00:03]} 47. Qg7# {[%clk 0:00:02]} 1-0


[Site "https://www.chess.com"]

[Event "Titled Tuesday Blitz March 14 Late 2023"]
[White "Chabris, Christopher"]
[Black "Koutlas, Nikolaos"]
[WhiteFideId "2005263"]
[BlackFideId "25827138"]
[WhiteElo "2187"]
[BlackElo "2215"]
[Result "0-1"]
[Round "02"]
[TimeControl "180+1"]
[Date "2023.03.14"]
[WhiteClock "0:00:03"]
[BlackClock "0:00:12"]

1. e4 {[%clk 0:03:00]}  c5 {[%clk 0:02:58]} 2. Nf3 {[%clk 0:03:00]}  Nc6 {[%clk 0:02:58]} 3. Bb5 {[%clk 0:02:59]}  g5 {[%clk 0:02:52]} 4. Bxc6 {[%clk 0:02:48]}  dxc6 {[%clk 0:02:50]} 5. Nxg5 {[%clk 0:02:48]}  Nf6 {[%clk 0:02:45]} 6. d3 {[%clk 0:02:46]}  Rg8 {[%clk 0:02:43]} 7. O-O {[%clk 0:02:34]}  h6 {[%clk 0:02:34]} 8. Nf3 {[%clk 0:02:34]}  Bh3 {[%clk 0:02:32]} 9. Ne1 {[%clk 0:02:34]}  Qd7 {[%clk 0:02:27]} 10. Kh1 {[%clk 0:02:07]}  Bg4 {[%clk 0:01:42]} 11. f3 {[%clk 0:02:02]}  Bh5 {[%clk 0:01:40]} 12. Bf4 {[%clk 0:02:01]}  Nxe4 {[%clk 0:01:36]} 13. Qe2 {[%clk 0:01:39]}  Nf6 {[%clk 0:01:25]} 14. Nc3 {[%clk 0:01:34]}  Nd5 {[%clk 0:01:04]} 15. Nxd5 {[%clk 0:01:26]}  cxd5 {[%clk 0:01:04]} 16. c4 {[%clk 0:01:05]}  d4 {[%clk 0:00:54]} 17. Qe5 {[%clk 0:01:03]}  Bg6 {[%clk 0:00:46]} 18. Qxc5 {[%clk 0:01:03]}  e6 {[%clk 0:00:38]} 19. Qe5 {[%clk 0:00:49]}  Bg7 {[%clk 0:00:31]} 20. Qc5 {[%clk 0:00:49]}  b6 {[%clk 0:00:28]} 21. Qb4 {[%clk 0:00:47]}  Bf6 {[%clk 0:00:20]} 22. Rd1 {[%clk 0:00:40]}  e5 {[%clk 0:00:18]} 23. Bg3 {[%clk 0:00:39]}  h5 {[%clk 0:00:18]} 24. f4 {[%clk 0:00:35]}  e4 {[%clk 0:00:14]} 25. dxe4 {[%clk 0:00:33]}  Bxe4 {[%clk 0:00:15]} 26. Nf3 {[%clk 0:00:31]}  O-O-O {[%clk 0:00:14]} 27. Rde1 {[%clk 0:00:28]}  Bc6 {[%clk 0:00:13]} 28. Ne5 {[%clk 0:00:25]}  Bxe5 {[%clk 0:00:13]} 29. Rxe5 {[%clk 0:00:25]}  Rxg3 {[%clk 0:00:13]} 30. Re7 {[%clk 0:00:24]}  Bxg2+ {[%clk 0:00:11]} 31. Kg1 {[%clk 0:00:23]}  Bxf1+ {[%clk 0:00:12]} 32. Kxf1 {[%clk 0:00:22]}  Qh3+ {[%clk 0:00:12]} 33. Ke1 {[%clk 0:00:18]}  Re3+ {[%clk 0:00:11]} 34. Kd1 {[%clk 0:00:16]}  Qf1+ {[%clk 0:00:12]} 35. Kc2 {[%clk 0:00:11]}  Qe2+ {[%clk 0:00:12]} 36. Kc1 {[%clk 0:00:10]}  Rxe7 {[%clk 0:00:12]} 37. Qb5 {[%clk 0:00:08]}  Qe3+ {[%clk 0:00:11]} 38. Kc2 {[%clk 0:00:08]}  Qe4+ {[%clk 0:00:11]} 39. Kb3 {[%clk 0:00:07]}  d3 {[%clk 0:00:11]} 40. Qa6+ {[%clk 0:00:03]}  Qb7 {[%clk 0:00:12]} 0-1


[Site "https://www.chess.com"]

[Event "Titled Tuesday Blitz March 14 Late 2023"]
[White "Chan, Kim Yew"]
[Black "Djordjevic, Dejan N"]
[WhiteFideId "5717981"]
[BlackFideId "913316"]
[WhiteElo "2206"]
[BlackElo "2261"]
[Result "1-0"]
[Round "02"]
[TimeControl "180+1"]
[Date "2023.03.14"]
[WhiteClock "0:01:17"]
[BlackClock "0:01:05"]

1. d4 {[%clk 0:03:00]}  Nf6 {[%clk 0:02:59]} 2. Nf3 {[%clk 0:03:00]}  g6 {[%clk 0:02:58]} 3. c4 {[%clk 0:03:00]}  Bg7 {[%clk 0:02:59]} 4. Nc3 {[%clk 0:03:01]}  d6 {[%clk 0:03:00]} 5. Bg5 {[%clk 0:03:01]}  O-O {[%clk 0:03:00]} 6. e3 {[%clk 0:03:02]}  Nc6 {[%clk 0:03:00]} 7. Be2 {[%clk 0:03:02]}  a6 {[%clk 0:03:00]} 8. O-O {[%clk 0:03:02]}  Bd7 {[%clk 0:03:00]} 9. Rb1 {[%clk 0:03:01]}  h6 {[%clk 0:02:58]} 10. Bh4 {[%clk 0:03:00]}  e5 {[%clk 0:02:55]} 11. b4 {[%clk 0:02:58]}  exd4 {[%clk 0:02:50]} 12. exd4 {[%clk 0:02:59]}  Ne7 {[%clk 0:02:39]} 13. Bd3 {[%clk 0:02:22]}  Nf5 {[%clk 0:02:32]} 14. Bxf5 {[%clk 0:02:21]}  Bxf5 {[%clk 0:02:31]} 15. Rb2 {[%clk 0:02:22]}  Re8 {[%clk 0:02:22]} 16. Re2 {[%clk 0:02:13]}  Rxe2 {[%clk 0:02:19]} 17. Nxe2 {[%clk 0:02:14]}  b5 {[%clk 0:02:03]} 18. c5 {[%clk 0:01:49]}  a5 {[%clk 0:01:59]} 19. cxd6 {[%clk 0:01:43]}  cxd6 {[%clk 0:01:58]} 20. d5 {[%clk 0:01:36]}  axb4 {[%clk 0:01:51]} 21. Ned4 {[%clk 0:01:36]}  Bd7 {[%clk 0:01:50]} 22. Qb3 {[%clk 0:01:34]}  Qa5 {[%clk 0:01:49]} 23. Nc6 {[%clk 0:01:30]}  Qxa2 {[%clk 0:01:45]} 24. Qxb4 {[%clk 0:01:29]}  Nxd5 {[%clk 0:01:30]} 25. Qxb5 {[%clk 0:01:20]}  Rc8 {[%clk 0:01:08]} 26. Qxd5 {[%clk 0:01:19]}  Bxc6 {[%clk 0:01:05]} 27. Qxa2 {[%clk 0:01:17]} 1-0


[Site "https://www.chess.com"]